[Event "Elitserien Allsvenskan 2018-19"]
[Site "Sweden"]
[Date "2019.03.30"]
[Round "8.7"]
[White "Sorensen, Hampus"]
[Black "Cramling, Dan"]
[Result "1-0"]
[ECO "A57"]
[WhiteElo "2319"]
[BlackElo "2322"]
[Annotator "NA"]
[PlyCount "119"]
[EventDate "2018.11.09"]
[EventType "team-tourn"]
[EventCountry "SWE"]
[SourceTitle "playchess.com"]
[Source "ChessBase"]
[SourceQuality "1"]
[TimeControl "40/5400+30:1800+30"]

1. d4 {[%emt 0:00:00]} Nf6 {[%emt 0:00:00]} 2. c4 {[%emt 0:00:29]} c5 {[%emt 0:00:18]} 3. d5 {[%emt 0:00:59]} b5 {[%emt 0:00:15]} 4. Qc2 {[%emt 0:01:10]} Na6 {[%emt 0:10:13]} 5. a3 {[%emt 0:03:42] A57: Benko/Volga Gambit} bxc4 {[%emt 0:03:11]} 6. e4 {[%emt 0:03:03]} e6 {[%emt 0:01:03]} 7. Bxc4 {[%emt 0:04:03]} (7. Nc3 exd5 8. exd5 Bd6 {Predecessor:} 9. Bxc4 O-O 10. Nge2 (10. Nf3 Re8+ 11. Be3 Bf4 12. O-O Bxe3 13. fxe3 {½-½ (25) Giemsa,S (2267)-Popovics,A (2423) Germany 2012}) 10... Nc7 11. O-O Re8 12. Qd3 Rb8 {½-½ (40) Mamedyarov,S (2766)-Mihok,O (2505) chess.com INT 2017}) 7... exd5 {[%emt 0:07:09]} 8. exd5 {[%emt 0:00:17]} Bd6 {[%emt 0:01:09]} 9. Qe2+ $146 {[%emt 0:10:31]} Qe7 {[%emt 0:00:57]} 10. Nc3 {[%emt 0:00:30]} O-O {[%emt 0:05:58]} 11. Qxe7 {[%emt 0:05:22]} Bxe7 {[%emt 0:00:16]} 12. Bf4 {[%emt 0:00:33]} Nh5 {[%emt 0:09:28]} 13. Be3 {[%emt 0:03:16]} d6 {[%emt 0:00:12]} 14. Nb5 {[%emt 0:03:36]} f5 {[%emt 0:01:52]} 15. f3 {[%emt 0:06:37]} Bd7 {[%emt 0:15:36]} 16. Ne2 {[%emt 0:11:42]} Rab8 {[%emt 0:07:00]} 17. Nec3 {[%emt 0:09:32]} Rb6 {[%emt 0:18:49]} (17... Rb7 $11) 18. O-O {[%emt 0:03:54]} f4 {[%emt 0:01:01]} 19. Bf2 {[%emt 0:02:22]} Bf6 {[%emt 0:00:27]} 20. a4 {[%emt 0:05:17]} Rfb8 {[%emt 0:01:11]} 21. Rac1 {[%emt 0:08:55]} R8b7 {[%emt 0:02:04]} 22. g4 {[%emt 0:01:21]} fxg3 {[%emt 0:00:42]} 23. hxg3 {[%emt 0:00:02]} Bxb5 {[%emt 0:02:37]} 24. axb5 {[%emt 0:01:48]} Nc7 {[%emt 0:00:23]} 25. Bxc5 {[%emt 0:03:57]} Bxc3 {[%emt 0:02:51]} 26. bxc3 {[%emt 0:02:20]} dxc5 {[%emt 0:00:20]} 27. d6+ {[%emt 0:00:18]} Kf8 {[%emt 0:00:12]} 28. dxc7 {[%emt 0:01:01]} Rxc7 {[%emt 0:00:14]} 29. Kg2 {[%emt 0:00:23]} Rd6 {[%emt 0:00:40]} 30. Rfd1 {[%emt 0:02:17]} Rxd1 {[%emt 0:02:08]} 31. Rxd1 {[%emt 0:00:03]} Nf6 {[%emt 0:00:27]} 32. g4 {[%emt 0:01:17]} Nd7 {[%emt 0:02:51]} 33. f4 {[%emt 0:01:14]} Nb6 {[%emt 0:01:30]} 34. Be6 {[%emt 0:00:33]} Ke7 {[%emt 0:00:28]} 35. f5 {[%emt 0:00:37]} Na4 {[%emt 0:02:27]} 36. c4 {[%emt 0:01:00]} h6 {[%emt 0:00:20]} 37. Kf3 {[%emt 0:00:21]} Nb6 {[%emt 0:01:10]} 38. Kf4 {[%emt 0:00:30]} Kf6 {[%emt 0:00:45]} 39. Rd8 {[%emt 0:01:50]} Ke7 {[%emt 0:00:31]} 40. Rg8 {[%emt 0:01:32]} Kf6 {[%emt 0:00:22]} 41. Rf8+ {[%emt 0:30:32]} Ke7 {[%emt 0:30:18]} 42. Rf7+ {[%emt 0:00:00]} Kd6 {[%emt 0:00:00]} 43. Rxc7 {[%emt 0:00:00]} Kxc7 {[%emt 0:00:00]} 44. Ke5 {[%emt 0:00:00]} Na4 {[%emt 0:00:00]} 45. f6 $2 {[%emt 0:00:00]} (45. Bd5 $18) 45... gxf6+ {[%emt 0:00:00]} 46. Kxf6 {[%emt 0:00:00]} Kd6 {[%emt 0:00:00]} 47. Bg8 {[%emt 0:00:00]} Nc3 {[%emt 0:00:00]} (47... Nb6 $1 $11) 48. Bh7 {[%emt 0:00:00]} Nd1 $1 {[%emt 0:00:00]} 49. Bd3 {[%emt 0:00:00]} Nf2 {[%emt 0:00:00]} 50. Be2 {[%emt 0:00:00]} Ne4+ {[%emt 0:00:00]} 51. Kg6 {[%emt 0:00:28]} Ke5 {[%emt 0:00:00]} 52. Kxh6 {[%emt 0:00:25]} Kf4 {[%emt 0:00:00]} 53. Kg6 {[%emt 0:00:54]} Nc3 {[%emt 0:00:00]} 54. Bf1 {[%emt 0:02:01]} Kxg4 {[%emt 0:00:00]} 55. Kf6 {[%emt 0:00:08]} Kf4 {[%emt 0:03:25]} 56. Ke6 {[%emt 0:00:09]} Ke4 {[%emt 0:02:52]} 57. Kd6 {[%emt 0:00:05]} Nxb5+ $1 {[%emt 0:01:17]} 58. cxb5 {[%emt 0:00:14]} Kd4 {[%emt 0:00:12]} 59. Bh3 {[%emt 0:01:10]} c4 {[%emt 0:01:19] [#]} 60. Be6 {[%emt 0:01:36]} 1-0

[Event "Elitserien Allsvenskan 2018-19"]
[Site "Sweden"]
[Date "2019.03.30"]
[Round "8.7"]
[White "Lundin, Jan"]
[Black "Vernersson, Per"]
[Result "1/2-1/2"]
[ECO "D00"]
[WhiteElo "2318"]
[BlackElo "2290"]
[Annotator "NA"]
[PlyCount "71"]
[EventDate "2018.11.09"]
[EventType "team-tourn"]
[EventCountry "SWE"]
[SourceTitle "playchess.com"]
[Source "ChessBase"]
[SourceQuality "1"]
[TimeControl "40/5400+30:1800+30"]

1. d4 {[%emt 0:01:19]} d5 {[%emt 0:00:16]} 2. Bf4 {[%emt 0:00:12]} Nf6 {[%emt 0:01:18]} 3. e3 {[%emt 0:00:09]} g6 {[%emt 0:04:59]} 4. Nf3 {[%emt 0:01:06]} Bg7 {[%emt 0:00:18]} 5. Be2 {[%emt 0:00:48]} O-O {[%emt 0:00:22]} 6. Ne5 {[%emt 0:03:37]} c5 {[%emt 0:05:19]} 7. c3 $11 {[%emt 0:04:30]} Nfd7 {[%emt 0:07:28]} 8. Nxd7 {[%emt 0:07:46]} Nxd7 {[%emt 0:00:22]} 9. Bf3 {[%emt 0:01:11]} cxd4 {[%emt 0:03:20]} 10. exd4 {[%emt 0:04:03]} Nf6 {[%emt 0:04:24]} 11. Nd2 {[%emt 0:03:23]} Bf5 {[%emt 0:02:32]} 12. O-O {[%emt 0:03:04]} Qd7 {[%emt 0:04:45]} 13. h3 {[%emt 0:02:16]} Bd3 {[%emt 0:04:12]} 14. Re1 {[%emt 0:01:47]} b6 {[%emt 0:01:57]} 15. Re3 {[%emt 0:04:17]} Ba6 {[%emt 0:06:19]} 16. a4 {[%emt 0:03:28]} e6 {[%emt 0:06:12]} 17. a5 {[%emt 0:09:29]} Bb5 {[%emt 0:06:08]} 18. h4 {[%emt 0:12:02]} Bc6 {[%emt 0:06:04]} 19. h5 {[%emt 0:03:21]} Rfc8 {[%emt 0:03:40]} 20. Re1 {[%emt 0:05:34]} Ne8 {[%emt 0:03:26]} 21. Qb3 {[%emt 0:00:52]} Qd8 {[%emt 0:04:33]} 22. hxg6 {[%emt 0:02:31]} hxg6 {[%emt 0:00:07]} 23. Ra2 {[%emt 0:02:35]} bxa5 {[%emt 0:00:40]} 24. Rea1 {[%emt 0:02:52]} a4 {[%emt 0:00:43]} 25. Qd1 {[%emt 0:00:14]} a5 {[%emt 0:01:13]} 26. Qe1 {[%emt 0:01:40]} Bf8 {[%emt 0:01:06]} 27. Bd1 {[%emt 0:00:38]} a3 {[%emt 0:00:29]} 28. b3 {[%emt 0:03:03]} Nd6 {[%emt 0:12:14]} 29. Nb1 {[%emt 0:04:21]} Nb5 {[%emt 0:02:11]} 30. Be2 {[%emt 0:00:14]} Qb6 {[%emt 0:03:32]} 31. Bd3 {[%emt 0:00:21]} Bd7 {[%emt 0:00:13]} 32. Bd2 {[%emt 0:02:06]} Nc7 {[%emt 0:01:05]} 33. Bc2 {[%emt 0:05:08]} Nb5 {[%emt 0:00:09]} 34. Bd3 {[%emt 0:00:05]} Nc7 {[%emt 0:00:05]} 35. Bc2 {[%emt 0:00:09]} Nb5 {[%emt 0:00:06]} 36. Bd3 1/2-1/2

[Event "Elitserien Allsvenskan 2018-19"]
[Site "Sweden"]
[Date "2019.03.30"]
[Round "8.7"]
[White "Jogstad, Martin"]
[Black "Johansson, David"]
[Result "1-0"]
[ECO "A40"]
[WhiteElo "2263"]
[BlackElo "2128"]
[Annotator "NA"]
[PlyCount "125"]
[EventDate "2018.11.09"]
[EventType "team-tourn"]
[EventCountry "SWE"]
[SourceTitle "playchess.com"]
[Source "ChessBase"]
[SourceQuality "1"]
[TimeControl "40/5400+30:1800+30"]

1. d4 {[%emt 0:00:00]} Nf6 {[%emt 0:00:38]} 2. c4 {[%emt 0:00:00]} e6 {[%emt 0:00:33]} 3. g3 {[%emt 0:00:06]} c5 {[%emt 0:00:31]} 4. Nf3 {[%emt 0:00:09]} cxd4 {[%emt 0:14:38]} 5. Nxd4 {[%emt 0:00:09]} Bb4+ {[%emt 0:00:08]} 6. Bd2 {[%emt 0:00:44]} Bc5 {[%emt 0:00:53]} 7. Nb3 {[%emt 0:02:15] A32: Symmetrical English: 2 Nf3 Nf6 3 d4 cxd4 4 Nxd4 e6} Be7 {[%emt 0:01:10]} 8. Bg2 {[%emt 0:00:50]} Nc6 {[%emt 0:01:23]} 9. O-O {[%emt 0:02:29]} O-O {[%emt 0:00:25]} 10. Nc3 {[%emt 0:03:56]} a6 {[%emt 0:03:03]} 11. Bf4 {[%emt 0:02:57]} d6 {[%emt 0:06:11]} 12. Qd2 {[%emt 0:06:23]} (12. Rc1 Qc7 13. Nd5 exd5 14. cxd5 Bd7 15. dxc6 bxc6 16. Nd4 c5 17. b4 Qa7 18. Bxa8 Qxa8 19. Nf3 Bh3 20. Re1 {1-0 (56) Adhiban,B (2674)-Bacrot,E (2697) Berlin 2015 CBM 170 [Adhiban,B]}) 12... Nh5 {[%emt 0:11:48]} 13. Be3 {[%emt 0:04:44]} Ne5 {[%emt 0:05:08]} 14. Qd4 $146 {[%emt 0:03:41]} ({Predecessor:} 14. c5 Nc4 15. Qc1 Nxe3 16. Qxe3 {0-1 (60) Skrivanek,J (2110)-Kulhanek,T (2375) Tabor 2011}) 14... Qc7 {[%emt 0:01:17]} 15. Nd2 {[%emt 0:01:55]} Bd7 {[%emt 0:03:23]} 16. Rac1 {[%emt 0:14:20]} Rac8 {[%emt 0:05:16]} 17. b3 {[%emt 0:06:53]} Bc6 {[%emt 0:06:54]} 18. Nde4 {[%emt 0:02:24]} Nf6 {[%emt 0:06:38]} 19. Rfd1 {[%emt 0:07:05]} Nxe4 {[%emt 0:05:24]} 20. Nxe4 {[%emt 0:00:27]} Rfd8 {[%emt 0:01:00]} 21. Bf4 {[%emt 0:16:48]} b6 {[%emt 0:11:27]} 22. a4 {[%emt 0:08:56]} a5 {[%emt 0:07:29]} 23. h3 {[%emt 0:04:41]} h6 {[%emt 0:00:35]} 24. Be3 {[%emt 0:00:53]} f5 {[%emt 0:01:58]} 25. Nc3 {[%emt 0:01:19]} Bxg2 {[%emt 0:00:27]} 26. Kxg2 {[%emt 0:00:03]} Qc6+ {[%emt 0:00:20]} 27. Kh2 {[%emt 0:01:17]} Rb8 {[%emt 0:02:59]} 28. Nb5 {[%emt 0:00:56]} Bf6 {[%emt 0:00:53]} 29. Qd2 {[%emt 0:00:25]} Nf7 {[%emt 0:00:11]} 30. Qe1 {[%emt 0:02:27]} Ng5 {[%emt 0:00:43]} 31. Rd3 {[%emt 0:02:42]} Ne4 {[%emt 0:00:42]} 32. Rcd1 {[%emt 0:00:25]} Be7 {[%emt 0:00:25]} 33. f3 {[%emt 0:01:16]} Nc5 {[%emt 0:00:42]} 34. Bxc5 {[%emt 0:00:23]} dxc5 {[%emt 0:00:48]} 35. R1d2 {[%emt 0:02:23]} Rxd3 {[%emt 0:00:36]} 36. Rxd3 {[%emt 0:00:02]} Rd8 {[%emt 0:00:10]} 37. Qd2 {[%emt 0:00:40]} Rxd3 {[%emt 0:00:17]} 38. Qxd3 {[%emt 0:00:01]} Kf7 {[%emt 0:00:29]} 39. e4 {[%emt 0:00:38]} g6 {[%emt 0:00:55]} 40. exf5 {[%emt 0:00:31]} gxf5 {[%emt 0:00:29]} 41. g4 {[%emt 0:31:23]} Kg6 {[%emt 0:07:33]} 42. Kg3 {[%emt 0:00:00]} Bf6 {[%emt 0:03:24]} 43. h4 {[%emt 0:00:00]} h5 {[%emt 0:03:49]} 44. Kf4 {[%emt 0:00:00]} hxg4 {[%emt 0:09:21]} 45. fxg4 {[%emt 0:00:00]} e5+ {[%emt 0:00:38] [#]} 46. Ke3 $1 {[%emt 0:00:00]} e4 {[%emt 0:05:22]} 47. gxf5+ {[%emt 0:00:00]} Kxf5 {[%emt 0:00:21]} 48. Qf1+ {[%emt 0:00:30]} Ke6 {[%emt 0:02:28]} 49. Qf4 {[%emt 0:00:59]} Kd7 {[%emt 0:01:17]} 50. h5 {[%emt 0:01:33]} Qe6 {[%emt 0:01:16]} 51. Qc7+ {[%emt 0:00:07]} Ke8 {[%emt 0:00:17]} 52. Nd6+ {[%emt 0:00:08]} Kf8 {[%emt 0:00:15]} 53. Qc8+ {[%emt 0:00:18]} Qxc8 {[%emt 0:00:50]} 54. Nxc8 {[%emt 0:00:06]} Bd8 {[%emt 0:00:37]} 55. Kxe4 {[%emt 0:00:09]} Ke8 {[%emt 0:00:29]} 56. Kf5 {[%emt 0:00:39]} Kf7 {[%emt 0:00:32]} 57. Ke5 $18 {[%emt 0:03:15]} Ke8 {[%emt 0:00:26]} 58. Ke6 {[%emt 0:00:36]} Bc7 {[%emt 0:00:09]} 59. h6 {[%emt 0:00:23]} Kf8 {[%emt 0:00:10]} 60. Kd7 {[%emt 0:00:27]} Bf4 {[%emt 0:00:14]} 61. h7 {[%emt 0:00:33]} Kg7 {[%emt 0:00:07]} 62. Nxb6 {[%emt 0:00:13]} Kxh7 {[%emt 0:00:18]} 63. Kc6 {[%emt 0:00:13]} 1-0

[Event "Elitserien Allsvenskan 2018-19"]
[Site "Sweden"]
[Date "2019.03.30"]
[Round "8.7"]
[White "Bjorkeroth, Johan"]
[Black "Thorn, Eric"]
[Result "1/2-1/2"]
[ECO "C48"]
[WhiteElo "2118"]
[BlackElo "2256"]
[Annotator "ChessBase"]
[PlyCount "118"]
[EventDate "2018.11.09"]
[EventType "team-tourn"]
[EventCountry "SWE"]
[SourceTitle "playchess.com"]
[Source "ChessBase"]
[SourceQuality "1"]
[TimeControl "40/5400+30:1800+30"]

1. e4 {[%emt 0:00:00]} e5 {[%emt 0:00:00]} 2. Nf3 {[%emt 0:00:00]} Nc6 {[%emt 0:00:00]} 3. Nc3 {[%emt 0:00:00]} Nf6 {[%emt 0:00:16]} 4. Bb5 {[%emt 0:00:04]} Bc5 {[%emt 0:01:17]} 5. O-O {[%emt 0:04:13]} O-O {[%emt 0:01:16]} 6. Bxc6 {[%emt 0:02:22]} dxc6 {[%emt 0:00:06]} 7. d3 {[%emt 0:00:26]} Qe7 {[%emt 0:02:16]} 8. Be3 {[%emt 0:11:15]} Nd7 {[%emt 0:07:31]} 9. Ne2 {[%emt 0:05:55]} Re8 {[%emt 0:02:34]} 10. Ng3 {[%emt 0:01:51]} Nf8 {[%emt 0:00:28]} 11. Bxc5 {[%emt 0:16:49]} Qxc5 {[%emt 0:00:31]} 12. d4 {[%emt 0:00:52]} exd4 {[%emt 0:00:29]} 13. Qxd4 {[%emt 0:05:24]} Ne6 {[%emt 0:07:49]} 14. Qxc5 {[%emt 0:09:19]} Nxc5 {[%emt 0:00:08]} 15. Nd2 {[%emt 0:02:12]} Be6 {[%emt 0:05:07]} 16. b3 {[%emt 0:01:01]} a5 {[%emt 0:02:48]} 17. Rfd1 {[%emt 0:04:56]} a4 {[%emt 0:08:51]} 18. Ndf1 {[%emt 0:03:48]} Red8 {[%emt 0:13:30]} 19. Rxd8+ {[%emt 0:06:40]} Rxd8 {[%emt 0:00:05]} 20. Ne3 {[%emt 0:01:01]} f6 {[%emt 0:11:23]} 21. Rd1 {[%emt 0:02:51]} Rxd1+ {[%emt 0:05:01]} 22. Nxd1 {[%emt 0:00:10]} Na6 {[%emt 0:00:08]} 23. Ne2 {[%emt 0:04:04]} Nb4 {[%emt 0:07:56]} 24. Nd4 {[%emt 0:02:07]} Bd7 {[%emt 0:03:49]} 25. Nc3 {[%emt 0:07:24]} a3 {[%emt 0:02:04]} 26. Kf1 {[%emt 0:03:03]} c5 {[%emt 0:01:36]} 27. Nf3 {[%emt 0:01:28]} Nxc2 {[%emt 0:01:06]} 28. Nd2 {[%emt 0:01:05]} b5 {[%emt 0:02:40]} 29. Ke2 {[%emt 0:00:28]} Kf7 {[%emt 0:06:31]} 30. g3 {[%emt 0:02:39]} Ke6 {[%emt 0:02:46]} 31. Kd3 {[%emt 0:00:37]} Nb4+ {[%emt 0:00:10]} 32. Ke3 {[%emt 0:00:10]} Nc2+ {[%emt 0:02:33]} 33. Kd3 {[%emt 0:00:04]} Nb4+ {[%emt 0:00:03]} 34. Ke3 {[%emt 0:00:04]} Bc6 {[%emt 0:00:03]} 35. Ndb1 {[%emt 0:02:03]} Nc2+ {[%emt 0:00:51]} 36. Kd3 {[%emt 0:00:30]} Nb4+ {[%emt 0:00:05]} 37. Kd2 {[%emt 0:00:34]} Na6 {[%emt 0:00:05]} 38. Ke3 {[%emt 0:00:23]} b4 {[%emt 0:01:17]} 39. Ne2 {[%emt 0:00:07]} g5 {[%emt 0:00:36]} 40. f4 {[%emt 0:01:27]} Bb5 {[%emt 0:01:52]} 41. Nd2 {[%emt 0:04:12]} Nb8 {[%emt 0:04:29]} 42. fxg5 {[%emt 0:04:04]} fxg5 {[%emt 0:00:07]} 43. Nf3 {[%emt 0:00:28]} h6 {[%emt 0:04:41]} 44. Nfd4+ {[%emt 0:02:06]} cxd4+ {[%emt 0:01:18]} 45. Nxd4+ {[%emt 0:00:07]} Ke5 {[%emt 0:00:39]} 46. Nxb5 {[%emt 0:00:10]} c5 {[%emt 0:02:03]} 47. Kd3 {[%emt 0:03:38]} Nd7 {[%emt 0:10:10]} 48. Na7 {[%emt 0:03:35]} Kd6 {[%emt 0:02:21]} 49. Nc8+ {[%emt 0:02:58]} Kc7 {[%emt 0:01:59]} 50. Ne7 {[%emt 0:01:10]} Ne5+ {[%emt 0:00:03]} 51. Kc2 {[%emt 0:00:41]} Nf3 {[%emt 0:01:26]} 52. Nf5 {[%emt 0:01:45]} h5 {[%emt 0:01:55]} 53. h4 {[%emt 0:02:11]} gxh4 {[%emt 0:02:19]} 54. gxh4 {[%emt 0:00:19]} Kd7 {[%emt 0:01:38]} 55. Kd3 {[%emt 0:00:18]} Ne5+ {[%emt 0:00:57]} 56. Kc2 Nf3 {[%emt 0:02:39]} 57. Kd3 {[%emt 0:00:12]} Ne5+ {[%emt 0:00:32]} 58. Kc2 {[%emt 0:00:06]} Nf3 {[%emt 0:00:34]} 59. Kd3 {[%emt 0:00:07]} Ne5+ {[%emt 0:00:07]} 1/2-1/2

[Event "Elitserien Allsvenskan 2018-19"]
[Site "Sweden"]
[Date "2019.03.30"]
[Round "8.8"]
[White "Moreau, Teodor"]
[Black "Bator, Robert"]
[Result "1-0"]
[ECO "D11"]
[WhiteElo "2332"]
[BlackElo "2369"]
[Annotator "NA"]
[PlyCount "63"]
[EventDate "2018.11.09"]
[EventType "team-tourn"]
[EventCountry "SWE"]
[SourceTitle "playchess.com"]
[Source "ChessBase"]
[SourceQuality "1"]
[TimeControl "40/5400+30:1800+30"]

1. d4 {[%emt 0:00:00]} d5 {[%emt 0:03:10]} 2. c4 {[%emt 0:01:00]} c6 {[%emt 0:00:04]} 3. Nf3 {[%emt 0:02:21]} Nf6 {[%emt 0:00:16]} 4. Qc2 {[%emt 0:01:44]} dxc4 {[%emt 0:01:07]} 5. Qxc4 {[%emt 0:00:12]} Bf5 {[%emt 0:00:07]} 6. g3 {[%emt 0:00:32]} e6 {[%emt 0:08:25]} 7. Bg2 {[%emt 0:01:19]} Be7 {[%emt 0:03:23]} 8. O-O {[%emt 0:00:37]} O-O {[%emt 0:00:49]} 9. Nc3 {[%emt 0:03:07]} Nbd7 {[%emt 0:04:16]} 10. Qb3 {[%emt 0:31:41]} Qb6 {[%emt 0:02:57] D23: Queen's Gambit Accepted: 3 Nf3 Nf6 sidelines} 11. Nd2 {[%emt 0:09:51]} Rfd8 {[%emt 0:22:03]} 12. e4 {[%emt 0:23:02]} Bg6 {[%emt 0:02:35]} 13. Nc4 {[%emt 0:00:55]} Qa6 {[%emt 0:02:43]} ({Wrong is} 13... Qxd4 $2 14. Be3 $18) 14. Bg5 {[%emt 0:03:32]} h6 {[%emt 0:16:08]} 15. Bh4 {[%emt 0:01:24]} Re8 {[%emt 0:07:23] [#]} 16. e5 $146 {[%emt 0:02:22]} ({Predecessor:} 16. a4 Bh7 17. f4 Nb6 18. Ne5 {1-0 (51) Kurajica,B (2554)-Golubovic,B (2437) Sibenik 2007}) 16... Bd3 {[%emt 0:05:40]} 17. Ne3 {[%emt 0:07:51]} Nd5 {[%emt 0:01:41]} 18. Bxe7 {[%emt 0:00:24]} Rxe7 {[%emt 0:04:44]} 19. Ncxd5 {[%emt 0:02:45]} cxd5 {[%emt 0:01:24]} 20. Rfc1 {[%emt 0:00:12]} Nb6 {[%emt 0:05:20]} 21. Rc3 {[%emt 0:00:58]} Be2 $16 {[%emt 0:00:30]} 22. Qc2 {[%emt 0:01:19]} Bh5 {[%emt 0:02:23]} 23. Bf1 {[%emt 0:00:16]} Qa4 {[%emt 0:00:06]} 24. Qd2 {[%emt 0:01:05]} Qe8 {[%emt 0:00:57]} 25. Rac1 {[%emt 0:00:14]} Bg6 {[%emt 0:00:45]} 26. b3 {[%emt 0:01:17]} Rc8 {[%emt 0:01:15]} 27. a4 {[%emt 0:00:38]} Rxc3 {[%emt 0:00:24]} 28. Qxc3 {[%emt 0:00:25]} Kh7 {[%emt 0:00:44]} 29. Qc5 {[%emt 0:00:22]} Na8 {[%emt 0:02:01]} 30. Qxa7 {[%emt 0:00:23]} b6 {[%emt 0:00:23]} 31. Qa6 {[%emt 0:00:18]} Qb8 {[%emt 0:00:16]} 32. Rc8 {[%emt 0:00:41]} 1-0

[Event "Elitserien Allsvenskan 2018-19"]
[Site "Sweden"]
[Date "2019.03.30"]
[Round "8.8"]
[White "Cederstam Barsk, Carl"]
[Black "Arvidsson, Tomas"]
[Result "1-0"]
[ECO "E95"]
[WhiteElo "2321"]
[BlackElo "2028"]
[Annotator "NA"]
[PlyCount "61"]
[EventDate "2018.11.09"]
[EventType "team-tourn"]
[EventCountry "SWE"]
[SourceTitle "playchess.com"]
[Source "ChessBase"]
[SourceQuality "1"]
[TimeControl "40/5400+30:1800+30"]

1. Nf3 {[%emt 0:00:00]} Nf6 {[%emt 0:00:00]} 2. c4 {[%emt 0:00:00]} g6 {[%emt 0:00:00]} 3. Nc3 {[%emt 0:00:00]} Bg7 {[%emt 0:00:04]} 4. e4 {[%emt 0:00:00]} d6 {[%emt 0:00:04]} 5. d4 {[%emt 0:00:05]} O-O {[%emt 0:00:06]} 6. Be2 {[%emt 0:00:08]} Nbd7 {[%emt 0:00:06]} 7. O-O {[%emt 0:01:19]} e5 {[%emt 0:00:06]} 8. Re1 {[%emt 0:02:32]} exd4 {[%emt 0:00:11]} 9. Nxd4 {[%emt 0:00:07]} Nc5 {[%emt 0:03:36]} 10. Bf1 {[%emt 0:00:09]} a5 {[%emt 0:01:16]} 11. Bg5 {[%emt 0:02:24]} c6 {[%emt 0:03:07]} 12. Qd2 {[%emt 0:08:01]} Qc7 {[%emt 0:00:20]} 13. Rad1 {[%emt 0:01:37]} Re8 {[%emt 0:10:09]} 14. f3 {[%emt 0:06:48]} Qb6 {[%emt 0:03:45]} 15. Be3 {[%emt 0:06:01]} a4 {[%emt 0:01:56]} 16. Qf2 {[%emt 0:05:43]} Qa5 {[%emt 0:06:44]} 17. Nc2 {[%emt 0:02:38]} Bf8 {[%emt 0:03:34]} 18. Bd4 {[%emt 0:08:57]} Ncd7 {[%emt 0:03:39]} 19. h3 {[%emt 0:00:31]} Bg7 {[%emt 0:05:03]} 20. Be3 {[%emt 0:03:55]} Bf8 {[%emt 0:01:51]} 21. g4 {[%emt 0:01:27]} h5 {[%emt 0:01:15]} 22. g5 {[%emt 0:05:00]} Nh7 {[%emt 0:00:10]} 23. f4 {[%emt 0:02:11]} f6 24. h4 {[%emt 0:13:45]} Nc5 {[%emt 0:03:46]} 25. f5 {[%emt 0:02:17]} Nxe4 {[%emt 0:04:39]} 26. Nxe4 {[%emt 0:00:17]} Rxe4 {[%emt 0:00:11]} 27. fxg6 {[%emt 0:00:12]} Nxg5 {[%emt 0:01:24]} 28. Bxg5 {[%emt 0:07:39]} Rg4+ {[%emt 0:02:33]} 29. Bg2 {[%emt 0:03:43]} d5 {[%emt 0:02:36]} 30. Qxf6 {[%emt 0:01:53]} Bc5+ {[%emt 0:00:28]} 31. Kh1 {[%emt 0:00:18]} 1-0

[Event "Elitserien Allsvenskan 2018-19"]
[Site "Sweden"]
[Date "2019.03.30"]
[Round "8.8"]
[White "Kretz, Johan"]
[Black "Haubro, Martin"]
[Result "1-0"]
[ECO "D43"]
[WhiteElo "2207"]
[BlackElo "2358"]
[Annotator "NA"]
[PlyCount "99"]
[EventDate "2018.11.09"]
[EventType "team-tourn"]
[EventCountry "SWE"]
[SourceTitle "playchess.com"]
[Source "ChessBase"]
[SourceQuality "1"]
[TimeControl "40/5400+30:1800+30"]

1. d4 {[%emt 0:00:00]} d5 {[%emt 0:00:00]} 2. c4 {[%emt 0:00:00]} e6 {[%emt 0:00:00]} 3. Nf3 {[%emt 0:00:11]} Nf6 {[%emt 0:00:00]} 4. Nc3 {[%emt 0:00:26]} c6 {[%emt 0:00:00]} 5. Bg5 {[%emt 0:00:27]} h6 {[%emt 0:00:00]} 6. Bxf6 {[%emt 0:03:15]} Qxf6 {[%emt 0:00:05]} 7. Qb3 {[%emt 0:04:08]} dxc4 {[%emt 0:30:11]} 8. Qxc4 {[%emt 0:01:22]} b5 {[%emt 0:00:11] D43: Semi-Slav: 5 Bg5 h6} (8... Nd7 9. e3 Qe7 10. Be2 g6 11. Ne5 Bg7 12. f4 O-O 13. Ne4 Nb6 14. Qb3 Nd5 15. O-O Qb4 16. Qxb4 Nxb4 17. Rfc1 {½-½ (50) Aronian,L (2805)-Fedoseev,V (2718) Riadh 2017}) 9. Qb3 {[%emt 0:04:43]} Nd7 {[%emt 0:06:14]} 10. g3 {[%emt 0:04:08]} b4 {[%emt 0:02:56]} 11. Na4 {[%emt 0:15:22]} Be7 $146 {[%emt 0:07:32]} ({Predecessor:} 11... Ba6 12. Bg2 Rc8 13. Rc1 Be7 14. Nc5 Nxc5 15. dxc5 O-O {½-½ (28) Loncar,R (2425)-Genovese,M (2285) Bernate 1999}) 12. Bg2 {[%emt 0:00:52]} O-O {[%emt 0:00:17]} 13. O-O {[%emt 0:01:44]} Ba6 {[%emt 0:00:06]} 14. Rac1 {[%emt 0:09:36]} Rac8 {[%emt 0:19:38]} 15. Qe3 {[%emt 0:05:39]} Bb5 {[%emt 0:01:55]} 16. Ne5 {[%emt 0:00:55]} Rfd8 {[%emt 0:13:05]} 17. b3 {[%emt 0:14:04]} Nb8 {[%emt 0:04:53]} 18. Nc5 {[%emt 0:02:19]} Bxc5 {[%emt 0:00:04]} 19. Rxc5 {[%emt 0:00:50]} Qe7 {[%emt 0:00:13]} 20. Rfc1 {[%emt 0:01:35]} Qd6 {[%emt 0:00:06]} 21. Qe4 {[%emt 0:08:14]} f6 {[%emt 0:04:45]} 22. Nc4 {[%emt 0:02:29]} Bxc4 {[%emt 0:01:06]} 23. R1xc4 {[%emt 0:01:20]} Rc7 {[%emt 0:02:17]} 24. e3 {[%emt 0:02:16]} Rdc8 {[%emt 0:00:14]} 25. Qc2 {[%emt 0:02:30]} Kh8 {[%emt 0:01:54]} 26. h4 {[%emt 0:00:48]} Kg8 {[%emt 0:00:29]} 27. d5 {[%emt 0:06:44]} exd5 {[%emt 0:00:23]} 28. Bxd5+ {[%emt 0:00:09]} Kh8 {[%emt 0:00:07]} 29. Bf3 {[%emt 0:00:24]} Kg8 {[%emt 0:00:42]} 30. h5 {[%emt 0:02:31]} Kh8 {[%emt 0:00:34]} 31. Qf5 {[%emt 0:02:37]} Nd7 {[%emt 0:03:04]} 32. Be4 {[%emt 0:01:20]} Nf8 {[%emt 0:00:10]} 33. Rxb4 {[%emt 0:01:18]} Qd2 {[%emt 0:00:53]} 34. Rd4 {[%emt 0:01:01]} Qxa2 {[%emt 0:00:06]} 35. b4 {[%emt 0:00:57]} Qg8 {[%emt 0:01:28]} 36. Rd6 {[%emt 0:00:11]} Qb3 {[%emt 0:01:28]} 37. b5 {[%emt 0:00:28]} a5 {[%emt 0:00:39]} 38. Rdxc6 {[%emt 0:00:24]} Rxc6 {[%emt 0:00:08]} 39. Rxc6 {[%emt 0:00:20]} Rd8 {[%emt 0:00:39]} 40. Kh2 {[%emt 0:01:22]} a4 {[%emt 0:00:15]} 41. Rc8 {[%emt 0:30:46]} Rxc8 {[%emt 0:03:56]} 42. Qxc8 {[%emt 0:00:00]} Qb4 {[%emt 0:00:09] [#]} 43. b6 $1 {[%emt 0:00:00]} Qxe4 {[%emt 0:00:04]} 44. b7 {[%emt 0:00:00]} Qf3 {[%emt 0:00:05]} 45. b8=Q {[%emt 0:00:00]} Qxf2+ {[%emt 0:00:06]} 46. Kh3 {[%emt 0:00:00]} Qf1+ {[%emt 0:01:13]} 47. Kh4 {[%emt 0:00:00]} Qh1+ {[%emt 0:00:05]} 48. Kg4 {[%emt 0:00:00]} Qe4+ {[%emt 0:00:04]} 49. Qf4 {[%emt 0:00:00]} f5+ {[%emt 0:00:04]} 50. Qcxf5 {[%emt 0:00:00]} 1-0